bitfinex-derivatives/quotes_SOLF0:USTF0_20260316
["timestamp","ask_amount","ask_price","bid_price","bid_amount"]
[1773697158279,1.80927004,96.38,96.311,26.01941783]
[1773697158475,9.02766483,96.4,96.311,26.01941783]
[1773697158781,1.80927004,96.375,96.311,26.01941783]
[1773697159080,9.02766483,96.4,96.311,26.01941783]
[1773697159281,1.80927004,96.381,96.311,26.01941783]
[1773697159484,9.02766483,96.4,96.311,26.01941783]
[1773697160381,18.668,96.415,96.311,26.01941783]
[1773697160679,9.02766483,96.42,96.311,26.01941783]
[1773697161385,1.80927004,96.404,96.311,26.01941783]
[1773697161587,9.02766483,96.42,96.311,26.01941783]
[1773697163487,1.80927004,96.394,96.311,26.01941783]
[1773697163784,9.02766483,96.42,96.311,26.01941783]
[1773697163977,1.80927004,96.394,96.311,26.01941783]
[1773697164383,9.02766483,96.42,96.311,26.01941783]
[1773697165088,1.80927004,96.401,96.311,26.01941783]
[1773697165289,9.02766483,96.42,96.311,26.01941783]
[1773697165582,18.667,96.419,96.311,26.01941783]
[1773697167089,9.02766483,96.44,96.338,25.97736426]
[1773697167289,9.02766483,96.44,96.34,25.97736426]
[1773697167889,1.80927004,96.434,96.34,25.97736426]
[1773697168187,9.02766483,96.44,96.34,25.97736426]
[1773697168383,42.28694457,96.457,96.34,25.97736426]
[1773697168582,32.68,96.457,96.35,25.98441522]
[1773697168982,32.68,96.457,96.354,25.98628991]
[1773697169182,32.68,96.457,96.357,25.98628991]
[1773697169590,1.80927004,96.442,96.357,25.98628991]
[1773697169785,9.02766483,96.48,96.375,25.98628991]
[1773697169989,32.68,96.486,96.387,12.49073832]
[1773697170191,32.68,96.486,96.388,25.97140246]
[1773697170687,1.80927004,96.451,96.388,25.97140246]
[1773697170889,9.02766483,96.46,96.388,25.97140246]
[1773697171397,9.02766483,96.44,96.352,25.93865218]
[1773697171694,32.68,96.439,96.352,25.93865218]
[1773697171890,32.68,96.439,96.35,32.68]
[1773697171891,32.68,96.467,96.357,25.92229564]
[1773697172096,32.68,96.467,96.358,25.92229564]
[1773697173092,32.68,96.467,96.363,25.8759134]
[1773697173695,9.02766483,96.49,96.375,25.8759134]
[1773697173696,32.68,96.49,96.375,25.8759134]
[1773697173895,32.68,96.49,96.38,25.8759134]
[1773697174594,1.80927004,96.482,96.38,25.8759134]
[1773697174797,32.68,96.49,96.38,25.8759134]
[1773697175190,1.80927004,96.464,96.38,25.8759134]
[1773697175395,32.68,96.49,96.38,25.8759134]
[1773697175590,1.80927004,96.481,96.38,25.8759134]
[1773697175796,32.68,96.49,96.38,25.8759134]
[1773697176598,1.80927004,96.474,96.38,25.8759134]
[1773697176897,32.68,96.49,96.38,25.8759134]
[1773697177091,1.80927004,96.474,96.383,25.89411606]
[1773697177398,41.70766483,96.49,96.383,25.89411606]
[1773697177693,9.02766483,96.47,96.383,25.89411606]
[1773697178087,1.80927004,96.435,96.383,25.89411606]
[1773697178292,9.02766483,96.47,96.383,25.89411606]
[1773697178597,1.80927004,96.439,96.383,25.89411606]
[1773697178794,9.02766483,96.47,96.383,25.89411606]
[1773697180098,1.80927004,96.437,96.383,25.89411606]
[1773697180289,9.02766483,96.47,96.383,25.89411606]
[1773697181296,9.02766483,96.45,96.347,25.94017423]
[1773697182598,1.80927004,96.426,96.347,25.94017423]
[1773697182899,9.02766483,96.45,96.347,25.94017423]
[1773697183096,1.80927004,96.395,96.347,25.94017423]
[1773697183301,32.66,96.438,96.347,25.94017423]
[1773697184700,1.80927004,96.413,96.347,25.94017423]
[1773697184898,32.66,96.438,96.347,25.94017423]
[1773697185301,9.02766483,96.43,96.347,25.94017423]
[1773697185702,1.80927004,96.403,96.347,25.94017423]
[1773697185900,32.66,96.438,96.347,25.94017423]
[1773697187001,32.66,96.467,96.347,25.94017423]
[1773697187197,1.80927004,96.438,96.347,44.62117423]
[1773697187399,9.02766483,96.5,96.37,25.04424839]
[1773697187598,9.02766483,96.5,96.372,25.04424839]
[1773697187995,9.02766483,96.5,96.371,45.15073832]
[1773697187996,9.02766483,96.5,96.375,25.04644264]
[1773697190399,9.02766483,96.48,96.375,25.04644264]
[1773697192706,9.02766483,96.5,96.38,25.08083322]
[1773697194008,9.02766483,96.5,96.384,25.07659522]
[1773697195203,9.02766483,96.5,96.385,32.66]
[1773697195397,9.02766483,96.5,96.386,25.07579027]
[1773697198103,7.86246697,96.508,96.386,34.57921843]
[1773697198305,7.86246697,96.508,96.385,32.66]
[1773697198306,32.66,96.509,96.401,25.07159852]
[1773697199107,32.66,96.509,96.403,25.07191168]
[1773697199409,9.02766483,96.53,96.403,25.07191168]
[1773697199709,9.02766483,96.53,96.4,9.02766483]
[1773697199710,9.02766483,96.53,96.408,25.07191168]
[1773697200205,9.02766483,96.57,96.431,25.06372395]
[1773697200405,7.61551368,96.579,96.437,9.50342816]
[1773697200607,9.02766483,96.57,96.447,25.06372395]
[1773697200801,9.02766483,96.57,96.455,25.06372395]
[1773697201004,32.66,96.575,96.456,25.06157393]
[1773697201205,9.02766483,96.59,96.456,25.06157393]
[1773697201911,7.6064616,96.592,96.471,25.08750398]
[1773697202104,7.6064616,96.592,96.47,9.02766483]
[1773697202105,32.66,96.593,96.475,25.08750398]
[1773697202309,9.02766483,96.59,96.477,25.08750398]
[1773697203308,4.86766483,96.59,96.477,25.08750398]
[1773697204604,9.02766483,96.57,96.477,25.08750398]
[1773697204913,9.02766483,96.55,96.436,25.13045424]
[1773697205113,9.02766483,96.55,96.438,25.13045424]
[1773697205312,9.02766483,96.55,96.44,25.13045424]
[1773697205512,9.02766483,96.55,96.442,25.13045424]
[1773697206510,9.02766483,96.53,96.442,25.13045424]
[1773697206714,9.02766483,96.51,96.407,25.12961701]
[1773697207320,18.646,96.527,96.407,25.12961701]
[1773697207321,9.02766483,96.49,96.407,25.12961701]
[1773697207518,9.02766483,96.51,96.407,25.12961701]
[1773697207813,9.02766483,96.49,96.407,25.12961701]
[1773697211324,9.02766483,96.49,96.35,9.02766483]
[1773697211325,9.02766483,96.5,96.38,25.16139138]
[1773697211717,9.02766483,96.48,96.38,25.16139138]
[1773697213724,14.89,96.479,96.38,25.16139138]
[1773697216624,9.02766483,96.47,96.38,25.16139138]
[1773697218728,9.01733362,96.46,96.38,25.16139138]
[1773697219226,9.01733362,96.46,96.326,12.49073832]
[1773697219227,9.01733362,96.46,96.339,25.33173979]
[1773697221630,7.59237333,96.468,96.339,25.33173979]
[1773697221836,9.01733362,96.46,96.339,25.33173979]
[1773697223337,9.01733362,96.46,96.34,25.26223235]
[1773697223538,9.01733362,96.46,96.33,9.01733362]
[1773697223539,9.01733362,96.46,96.342,25.26223235]
[1773697223733,9.01733362,96.46,96.341,9.50342816]
[1773697223734,9.01733362,96.46,96.35,9.01733362]
[1773697223937,9.01733362,96.46,96.352,25.26223235]
[1773697224636,14.89,96.479,96.352,25.26223235]
[1773697224939,32.66,96.478,96.352,25.26223235]
[1773697225543,40.509668,96.478,96.352,25.26223235]
[1773697226240,32.66,96.478,96.352,25.26223235]
[1773697226741,9.01733362,96.46,96.352,25.26223235]
[1773697227344,9.01733362,96.47,96.352,25.26223235]
[1773697230443,18.659,96.463,96.352,25.26223235]
[1773697231043,9.01733362,96.45,96.352,25.26223235]
[1773697232543,18.659,96.463,96.352,25.26223235]
[1773697232743,18.659,96.459,96.352,25.26223235]
[1773697235151,9.01733362,96.44,96.352,25.26223235]
[1773697235849,18.664,96.436,96.31,25.28382927]
[1773697237046,9.01733362,96.42,96.31,25.28382927]
[1773697240752,3.79087141,96.39,96.31,29.07470068]
[1773697240953,32.68,96.389,96.31,29.07470068]
[1773697242458,3.79087141,96.37,96.31,25.28382927]
[1773697243160,3.79087141,96.36,96.31,25.28382927]
[1773697245559,3.79087141,96.35,96.31,25.28382927]
[1773697246053,3.79087141,96.35,96.284,25.19622508]
[1773697246253,3.79087141,96.34,96.284,25.19622508]
[1773697246753,15.08,96.339,96.284,25.19622508]
[1773697247361,3.79087141,96.33,96.284,25.19622508]
[1773697248362,3.79087141,96.31,96.261,25.19128906]
[1773697248658,3.79087141,96.3,96.261,25.19128906]
[1773697248958,3.79087141,96.3,96.221,25.18139765]
[1773697249356,15.08,96.339,96.221,25.18139765]
[1773697249555,15.08,96.339,96.241,25.18139765]
[1773697249760,3.79087141,96.3,96.241,25.18139765]
[1773697250055,3.79087141,96.3,96.202,1.80759971]
[1773697250260,3.79087141,96.27,96.203,25.20054594]
[1773697250859,9.04750093,96.3,96.203,25.20054594]
[1773697252462,9.04750093,96.32,96.203,25.20054594]
[1773697253453,9.04750093,96.3,96.203,25.20054594]
[1773697256064,9.04750093,96.28,96.203,25.20054594]
[1773697259461,18.694,96.278,96.181,24.89510346]
[1773697259661,9.04750093,96.26,96.181,24.89510346]
[1773697262464,9.04750093,96.24,96.156,24.8590357]
[1773697262866,18.694,96.278,96.156,24.8590357]
[1773697262867,9.04750093,96.22,96.156,24.8590357]
[1773697264265,9.04750093,96.24,96.156,24.8590357]
[1773697264461,18.694,96.28,96.156,24.8590357]
[1773697264462,9.04750093,96.26,96.156,24.8590357]
[1773697267272,9.04750093,96.26,96.156,16.8590357]
[1773697271280,18.698,96.259,96.156,16.8590357]
[1773697271482,32.72,96.266,96.156,16.8590357]
[1773697272279,32.72,96.266,96.181,20.70409483]
[1773697274573,182.8,96.304,96.181,20.70409483]
[1773697274574,9.04750093,96.3,96.181,20.70409483]
[1773697274776,32.72,96.299,96.181,20.70409483]
[1773697275182,32.72,96.299,96.14,32.72]
[1773697275183,32.72,96.299,96.191,20.65005966]
[1773697275391,32.72,96.299,96.154,103.993]
[1773697275392,32.72,96.345,96.231,9.44482997]
[1773697275678,32.72,96.345,96.251,9.44482997]
[1773697276080,9.26768563,96.338,96.251,9.44482997]
[1773697276784,32.72,96.345,96.251,9.44482997]
[1773697276785,9.26768563,96.329,96.251,9.44482997]
[1773697277174,9.26768563,96.329,96.203,32.72]
[1773697277175,9.26768563,96.329,96.211,9.44482997]
[1773697279988,9.26768563,96.309,96.211,9.44482997]
[1773697280188,9.26768563,96.307,96.211,9.44482997]
[1773697281091,9.26768563,96.299,96.176,9.44482997]
[1773697281286,9.26768563,96.279,96.176,9.44482997]
[1773697281886,9.26768563,96.279,96.18,9.04369705]
[1773697282091,9.26768563,96.279,96.181,9.44482997]
[1773697282487,9.26768563,96.304,96.181,9.44482997]
[1773697282882,9.26768563,96.304,96.201,10.9648639]
[1773697283682,11.12084154,96.289,96.201,10.9648639]
[1773697290597,11.12084154,96.287,96.201,10.9648639]
[1773697291795,11.12084154,96.249,96.161,10.9648639]
[1773697291996,11.12084154,96.247,96.161,10.9648639]
[1773697292199,11.12084154,96.246,96.161,10.9648639]
[1773697293303,11.12084154,96.229,96.161,10.9648639]
[1773697295697,11.12084154,96.246,96.161,10.9648639]
[1773697296598,11.12084154,96.239,96.161,10.9648639]
[1773697298403,32.72,96.248,96.161,10.9648639]
[1773697298605,11.12084154,96.273,96.161,10.9648639]
[1773697299101,11.12084154,96.273,96.16,9.04369705]
[1773697299102,11.12084154,96.273,96.165,10.9648639]
[1773697299303,11.12084154,96.294,96.181,10.9648639]
[1773697299703,11.12084154,96.287,96.195,10.9648639]
[1773697303803,9.04369705,96.28,96.187,11.69898255]
[1773697304001,12.35289215,96.279,96.187,11.69898255]
[1773697304200,12.35289215,96.279,96.157,9.57828262]
[1773697304398,12.35289215,96.259,96.159,11.69898255]
[1773697304597,12.35289215,96.257,96.159,11.69898255]
[1773697305712,12.35289215,96.257,96.16,11.69898255]
[1773697306507,12.35289215,96.239,96.16,11.69898255]
[1773697308112,12.35289215,96.239,96.14,11.69898255]
[1773697308309,12.35289215,96.219,96.14,11.69898255]
[1773697308509,12.35289215,96.217,96.14,11.69898255]
[1773697312208,12.35289215,96.217,96.107,11.69898255]
[1773697312413,12.35289215,96.199,96.107,11.69898255]
[1773697314117,32.72,96.218,96.107,11.69898255]
[1773697314118,9.04369705,96.18,96.107,11.69898255]
[1773697314417,21.14806008,96.18,96.107,11.69898255]
[1773697314917,12.10436303,96.179,96.107,11.69898255]
[1773697315910,9.04369705,96.18,96.107,11.69898255]
[1773697316116,12.10436303,96.197,96.107,11.69898255]
[1773697316311,32.72,96.218,96.09,13.42006127]
[1773697316312,9.04369705,96.16,96.09,13.42006127]
[1773697316517,12.98907616,96.158,96.072,13.42006127]
[1773697321424,12.98907616,96.176,96.072,13.42006127]
[1773697322720,9.04369705,96.24,96.111,13.42006127]
[1773697322721,12.98907616,96.239,96.111,13.42006127]
[1773697324515,12.98907616,96.239,96.112,32.74]
[1773697324721,12.98907616,96.239,96.113,13.42006127]
[1773697326220,12.98907616,96.239,96.131,13.42006127]
[1773697326817,12.98907616,96.239,96.133,13.42006127]
[1773697329628,12.98907616,96.219,96.133,13.42006127]
[1773697342423,19.64,96.218,96.133,13.42006127]
[1773697344432,33.34071164,96.218,96.133,13.42006127]
[1773697345128,19.64,96.218,96.133,13.42006127]
[1773697347128,13.70071164,96.217,96.135,13.37511509]
[1773697348728,13.70071164,96.217,96.134,32.72]
[1773697348729,13.70071164,96.217,96.141,13.37511509]
[1773697349124,13.70071164,96.217,96.14,3.80430349]
[1773697349125,13.70071164,96.217,96.151,13.37511509]
[1773697350132,13.70071164,96.209,96.151,13.37511509]
[1773697350438,13.70071164,96.199,96.151,13.37511509]
[1773697351332,19.64,96.218,96.16,3.80430349]
[1773697351537,13.70071164,96.217,96.161,13.37511509]
[1773697352928,17.50501513,96.21,96.161,13.37511509]
[1773697353136,13.70071164,96.209,96.161,13.37511509]
[1773697358641,13.70071164,96.209,96.128,13.37511509]
[1773697358943,13.70071164,96.209,96.131,13.37511509]
[1773697359944,13.70071164,96.199,96.131,13.37511509]
[1773697360949,13.70071164,96.189,96.121,13.37511509]
[1773697361841,13.70071164,96.189,96.131,13.37511509]
[1773697362149,7.86992621,96.215,96.104,32.72]
[1773697362150,13.70071164,96.209,96.141,13.37511509]
[1773697362646,13.70071164,96.209,96.151,13.37511509]
[1773697363845,19.64,96.218,96.161,13.37511509]
[1773697364051,19.64,96.218,96.171,13.37511509]
[1773697364645,19.64,96.218,96.18,3.80430349]
[1773697364853,19.64,96.218,96.171,13.37511509]
[1773697367853,13.70071164,96.253,96.171,13.37511509]
[1773697368250,13.70071164,96.268,96.181,8.21141742]
[1773697368451,13.70071164,96.268,96.183,8.21141742]
[1773697369255,13.70071164,96.268,96.187,8.25559173]
[1773697369555,13.70071164,96.268,96.155,31.12]
[1773697369556,13.70071164,96.303,96.201,8.25559173]
[1773697369751,13.70071164,96.303,96.203,8.25559173]
[1773697370052,13.70071164,96.303,96.205,8.25559173]
[1773697371347,13.70071164,96.301,96.205,8.25559173]
[1773697382260,20.18,96.302,96.214,9.27252867]
[1773697382858,15.40726101,96.331,96.24,9.05299263]
[1773697385460,15.40726101,96.331,96.231,18.704]
[1773697385662,15.40726101,96.331,96.232,32.72]
[1773697385855,20.89461029,96.329,96.232,32.72]
[1773697386763,20.9396319,96.299,96.232,32.72]
[1773697387759,20.9396319,96.299,96.25,3.79728587]
[1773697387959,20.90033432,96.32,96.25,3.79728587]
[1773697388160,20.90033432,96.32,96.27,3.79728587]
[1773697389165,20.90033432,96.32,96.232,32.72]
[1773697389166,3.79728587,96.36,96.281,10.51953759]
[1773697389464,3.79728587,96.37,96.291,10.51953759]
[1773697389664,3.79728587,96.37,96.301,10.51953759]
[1773697390259,3.79728587,96.39,96.32,3.79728587]
[1773697390457,3.79728587,96.39,96.321,10.59242135]
[1773697390658,286.401,96.501,96.32,3.79728587]
[1773697390659,3.79728587,96.41,96.336,10.59242135]
[1773697390858,32.72,96.436,96.341,10.59242135]
[1773697391058,15.40726101,96.439,96.341,10.59242135]
[1773697391257,15.40726101,96.439,96.308,18.688]
[1773697391258,15.40726101,96.439,96.343,11.02409587]
[1773697391464,15.40726101,96.439,96.345,11.02409587]
[1773697392162,15.40726101,96.439,96.367,11.10961804]
[1773697393162,15.65,96.438,96.367,11.10961804]
[1773697393367,15.40726101,96.437,96.367,11.10961804]
[1773697394169,15.40726101,96.437,96.331,11.28780934]
[1773697394365,15.40726101,96.437,96.332,11.28780934]
[1773697401881,15.40726101,96.437,96.334,12.16928484]
[1773697410773,16.32401564,96.429,96.351,13.10339254]
[1773697412577,16.32401564,96.419,96.351,13.10339254]
[1773697413073,16.32401564,96.389,96.32,3.7876615]
[1773697413280,16.32401564,96.389,96.318,13.20774355]
[1773697413877,16.32401564,96.389,96.321,13.27531618]
[1773697415780,16.32401564,96.389,96.313,32.68]
[1773697416382,16.32401564,96.389,96.31,3.7876615]
[1773697417577,16.32401564,96.369,96.31,3.7876615]
[1773697417782,16.32401564,96.367,96.29,3.7876615]
[1773697418183,16.32401564,96.349,96.274,13.39630247]
[1773697422381,16.32401564,96.349,96.257,13.51308073]
[1773697430890,16.32401564,96.349,96.259,14.3561463]
[1773697431093,16.32401564,96.349,96.26,47.1316219]
[1773697431294,16.32401564,96.349,96.261,14.4316219]
[1773697432391,16.32401564,96.349,96.273,14.45106186]
[1773697432594,16.78495763,96.365,96.281,14.45106186]
[1773697433189,16.78495763,96.365,96.28,9.03342616]
[1773697433190,16.78495763,96.365,96.283,14.74074169]
[1773697434192,16.78495763,96.429,96.283,14.74074169]
[1773697434497,16.78495763,96.429,96.321,14.83295285]
[1773697434698,16.78495763,96.429,96.323,14.83295285]
[1773697434903,16.78495763,96.429,96.325,14.83295285]
[1773697435399,16.78495763,96.429,96.341,14.86425596]
[1773697436404,16.86005948,96.427,96.341,14.86425596]
[1773697438504,16.86005948,96.427,96.322,47.72102694]
[1773697438706,16.86005948,96.427,96.323,15.02102694]
[1773697438907,16.86005948,96.427,96.322,32.7]
[1773697439206,16.86005948,96.409,96.322,32.7]
[1773697439408,16.86005948,96.407,96.322,32.7]
[1773697439811,16.86005948,96.407,96.306,15.02102694]
[1773697440007,16.86005948,96.407,96.289,32.68]
[1773697441005,16.86005948,96.389,96.289,32.68]
[1773697441411,16.86005948,96.389,96.29,15.45875879]
[1773697443414,16.86005948,96.389,96.267,15.82579876]
[1773697443814,16.86005948,96.389,96.266,32.68]
[1773697443815,16.86005948,96.389,96.271,15.82579876]
[1773697444512,16.86005948,96.389,96.272,15.77207334]
[1773697444713,16.86005948,96.389,96.281,15.77207334]
[1773697445014,16.86005948,96.389,96.301,15.77207334]
[1773697445410,16.86005948,96.389,96.303,9.49771434]
[1773697445711,16.86005948,96.427,96.341,15.80252005]
[1773697445911,16.86005948,96.427,96.343,15.80252005]
[1773697456020,24.62,96.428,96.343,15.80252005]
[1773697456320,24.62,96.428,96.347,16.26196978]
[1773697456526,24.62,96.428,96.351,9.49771434]
[1773697456724,24.62,96.428,96.356,16.26196978]
[1773697457324,24.62,96.428,96.358,16.30175664]
[1773697459820,24.62,96.428,96.361,16.35959416]
[1773697468736,24.62,96.428,96.357,32.68]
[1773697468737,17.21652159,96.427,96.338,16.75332138]
[1773697468933,17.21652159,96.427,96.34,16.75332138]
[1773697469331,17.21652159,96.427,96.342,16.75332138]
[1773697470837,17.21652159,96.427,96.341,32.66]
[1773697471937,17.21652159,96.419,96.341,32.66]
[1773697473539,17.21652159,96.419,96.303,16.59382573]
[1773697473739,17.21652159,96.399,96.303,16.59382573]
[1773697473940,17.21652159,96.397,96.303,16.59382573]
[1773697474743,17.21652159,96.397,96.299,32.68]
[1773697477844,17.21652159,96.397,96.3,16.64437876]
[1773697478046,17.21652159,96.397,96.311,16.64437876]
[1773697478245,17.21652159,96.437,96.313,16.61776812]
[1773697478646,17.21652159,96.437,96.325,16.61776812]
[1773697479340,17.21652159,96.437,96.328,16.71562127]
[1773697479541,17.21652159,96.435,96.333,16.71562127]
[1773697479946,17.21652159,96.435,96.334,16.71562127]
[1773697480747,17.21652159,96.435,96.336,16.73958618]
[1773697483152,17.21652159,96.435,96.337,49.39282484]
[1773697483447,17.21652159,96.435,96.338,16.72126371]
[1773697484152,17.21652159,96.419,96.33,32.68]
[1773697484353,17.21652159,96.419,96.32,16.74773696]
[1773697486351,17.21652159,96.419,96.324,9.49771434]
[1773697486556,17.21652159,96.419,96.325,16.75332138]
[1773697486856,17.21652159,96.419,96.329,16.75332138]
[1773697487259,17.21652159,96.419,96.331,16.75332138]
[1773697488351,17.21652159,96.419,96.334,16.73563665]
[1773697488649,17.21652159,96.419,96.313,16.73563665]
[1773697488851,17.21652159,96.399,96.305,32.68]
[1773697489052,17.21652159,96.397,96.305,32.68]
[1773697490964,17.21652159,96.397,96.306,16.75332138]
[1773697496167,17.21652159,96.397,96.307,17.16836416]
[1773697496466,17.21652159,96.397,96.312,18.688]
[1773697496666,16.36285526,96.421,96.329,9.53706967]
[1773697496968,16.36285526,96.421,96.332,17.16836416]
[1773697497170,16.36285526,96.421,96.334,17.16836416]
[1773697497370,16.36285526,96.421,96.335,17.16836416]
[1773697497869,16.36285526,96.421,96.339,17.16836416]
[1773697498065,16.36285526,96.421,96.341,17.16836416]
[1773697499971,16.36285526,96.421,96.343,17.16836416]
[1773697500772,16.36285526,96.439,96.343,17.16836416]
[1773697500976,16.36285526,96.474,96.381,17.16836416]
[1773697501173,16.36285526,96.474,96.382,49.84836416]
[1773697501375,16.36285526,96.474,96.383,17.16836416]
[1773697501574,16.36285526,96.519,96.383,17.16836416]
[1773697501975,16.36285526,96.519,96.401,17.16836416]
[1773697502175,16.36285526,96.519,96.4,9.01414574]
[1773697502176,16.36285526,96.519,96.403,17.14746148]
[1773697502776,16.36285526,96.519,96.405,17.14746148]
[1773697503281,16.36285526,96.509,96.405,17.14746148]
[1773697503484,16.36285526,96.489,96.405,17.14746148]
[1773697504777,16.36285526,96.489,96.363,17.16836416]
[1773697504977,16.36285526,96.489,96.365,17.16836416]
[1773697505178,16.36285526,96.487,96.365,17.16836416]
[1773697506384,16.36285526,96.469,96.365,17.16836416]
[1773697513191,16.36285526,96.469,96.367,17.16836416]
[1773697515489,16.36285526,96.459,96.367,17.16836416]
[1773697516092,16.36285526,96.459,96.366,32.66]
[1773697516284,16.36285526,96.439,96.349,17.16836416]
[1773697520490,16.36285526,96.439,96.352,17.16836416]
[1773697521296,16.36285526,96.439,96.353,17.16836416]
[1773697521994,16.36285526,96.439,96.354,17.16836416]
[1773697522391,16.36285526,96.439,96.356,17.15377859]
[1773697522592,16.36285526,96.439,96.359,17.15377859]
[1773697522895,16.36285526,96.439,96.36,17.15377859]
[1773697524395,16.36285526,96.439,96.364,17.1844946]
[1773697525392,16.90821735,96.468,96.37,17.14413745]
[1773697525593,18.644,96.538,96.363,9.46007846]
[1773697525594,16.90821735,96.51,96.411,17.14413745]
[1773697525791,16.90821735,96.487,96.413,17.14413745]
[1773697525992,16.90821735,96.487,96.414,32.66]
[1773697526189,16.90821735,96.487,96.415,17.10615424]
[1773697526590,18.637,96.573,96.415,17.10615424]
[1773697526591,16.90821735,96.506,96.415,17.10615424]
[1773697527691,16.90821735,96.506,96.417,17.12373909]
[1773697530698,1.80407628,96.55,96.416,32.66]
[1773697530699,16.90821735,96.487,96.416,32.66]
[1773697535508,16.90821735,96.487,96.417,17.26704753]
[1773697537109,16.90821735,96.505,96.417,17.26704753]
[1773697539112,16.90821735,96.505,96.419,17.29009511]
[1773697541011,16.90821735,96.487,96.418,32.66]
[1773697542813,16.90821735,96.487,96.418,49.83429575]
[1773697543009,16.90821735,96.487,96.419,17.17429575]
[1773697549612,16.90821735,96.487,96.416,32.66]
[1773697552015,16.90821735,96.487,96.417,16.9476495]
[1773697556421,16.7354546,96.506,96.42,17.10312352]
[1773697558619,16.7354546,96.506,96.422,17.25076323]
[1773697561322,16.7354546,96.506,96.434,17.0109567]
[1773697561618,16.7354546,96.554,96.469,17.0109567]
[1773697561824,16.7354546,96.554,96.471,17.0109567]
[1773697565530,25.04,96.553,96.471,17.0109567]
[1773697567334,41.7754546,96.553,96.471,17.0109567]
[1773697567634,16.7354546,96.552,96.471,17.0109567]
[1773697574841,16.7354546,96.552,96.473,16.84427249]
[1773697575030,16.7354546,96.552,96.474,16.84427249]
[1773697575633,16.7354546,96.552,96.475,16.90330497]
[1773697576040,16.7354546,96.552,96.48,9.45005501]
[1773697576241,25.04,96.553,96.486,16.93886414]
[1773697576446,25.04,96.553,96.49,16.93886414]
[1773697576740,25.04,96.553,96.492,16.93886414]
[1773697576930,16.7354546,96.552,96.492,16.93886414]
[1773697577344,25.04,96.553,96.494,16.96404088]
[1773697580130,16.7354546,96.552,96.494,16.96404088]
[1773697582337,16.7354546,96.552,96.493,32.64]
[1773697582831,16.7354546,96.552,96.493,49.99761124]
[1773697585037,16.7354546,96.552,96.493,17.35761124]
[1773697585339,16.7354546,96.552,96.494,32.62]
[1773697587341,16.7354546,96.552,96.494,49.97761124]
[1773697587539,16.7354546,96.552,96.495,17.35761124]
[1773697589236,25.04,96.553,96.495,17.35761124]
[1773697593348,25.04,96.553,96.497,17.35761124]
[1773697594450,17.11788519,96.569,96.502,17.35761124]
[1773697595649,17.11788519,96.569,96.504,17.35761124]
[1773697597153,3.77613865,96.57,96.504,17.35761124]
[1773697597352,24.74613865,96.57,96.504,17.35761124]
[1773697599755,24.74613865,96.57,96.506,17.35761124]
[1773697600254,24.74613865,96.57,96.508,17.35761124]
[1773697600456,17.11788519,96.569,96.513,17.35761124]
[1773697600657,17.11788519,96.569,96.517,17.35761124]
[1773697601358,17.11788519,96.569,96.52,17.35761124]
[1773697602358,17.11788519,96.569,96.521,17.35761124]
[1773697603058,20.97,96.57,96.521,17.35761124]
[1773697605354,20.97,96.57,96.521,26.77786829]
[1773697606055,20.97,96.57,96.524,9.42025705]
[1773697606255,20.97,96.57,96.526,9.42025705]
[1773697606658,20.97,96.57,96.527,32.62]
[1773697610161,20.97,96.57,96.528,17.35761124]
[1773697610965,17.11788519,96.569,96.527,32.62]
[1773697611265,3.77613865,96.56,96.527,1.74768366]
[1773697611466,17.11788519,96.559,96.527,1.74768366]
[1773697613065,24.74613865,96.57,96.527,1.74768366]
[1773697613263,20.97,96.57,96.527,1.74768366]
[1773697613570,20.97,96.57,96.528,18.26847009]
[1773697614466,17.07865328,96.569,96.527,1.74768366]
[1773697615268,17.07865328,96.569,96.512,9.42025705]
[1773697615563,17.07865328,96.569,96.506,18.26847009]
[1773697615866,17.07865328,96.569,96.501,9.42025705]
[1773697616264,17.07865328,96.569,96.502,9.42025705]
[1773697616665,17.07865328,96.569,96.497,9.42025705]
[1773697617066,24.74613865,96.57,96.497,9.42025705]
[1773697617067,18.21318958,96.559,96.497,9.42025705]
[1773697617371,18.21318958,96.559,96.498,9.42025705]
[1773697618072,18.21318958,96.559,96.498,26.20748836]
[1773697618775,18.21318958,96.559,96.499,16.78723131]
[1773697619174,18.21318958,96.559,96.499,26.20748836]
[1773697619366,18.21318958,96.549,96.495,9.42025705]
[1773697619571,18.21318958,96.539,96.495,9.42025705]
[1773697620674,18.21318958,96.539,96.481,9.42025705]
[1773697621075,18.21318958,96.539,96.48,42.04025705]
[1773697621471,18.21318958,96.539,96.47,3.77613865]
[1773697621472,18.21318958,96.539,96.472,9.42025705]
[1773697621679,9.5994704,96.581,96.46,9.42025705]
[1773697621680,18.21318958,96.519,96.46,9.42025705]
[1773697622074,18.21318958,96.509,96.459,9.42025705]
[1773697622275,18.21318958,96.509,96.457,9.42025705]
[1773697622479,18.21318958,96.509,96.451,32.62]